bitfinex/quotes_ETHUSD_20240701
["timestamp","ask_amount","ask_price","bid_price","bid_amount"]
[1719858049033,0.13068034,3502.3,3501.5,3.0]
[1719858049194,1.711,3501.6,3500.9,3.0]
[1719858049402,0.05928324,3501.5,3501.3,3.0]
[1719858049596,0.05928324,3501.5,3500.3,2.2543]
[1719858049820,0.05928324,3501.5,3500.9,3.0]
[1719858050131,1.711,3501.6,3500.9,3.0]
[1719858050431,0.05928324,3501.5,3501.3,3.0]
[1719858053431,1.711,3501.9,3501.3,3.0]
[1719858053734,0.0592588,3501.4,3501.3,3.0]
[1719858053951,0.55,3501.8,3501.3,3.0]
[1719858054117,0.0592588,3501.4,3501.3,3.0]
[1719858054326,1.31297957,3501.8,3501.3,3.0]
[1719858054521,0.0592588,3501.4,3501.3,3.0]
[1719858054837,0.05926018,3501.4,3501.3,3.0]
[1719858055038,1.31297957,3501.8,3501.3,3.0]
[1719858055240,0.05926018,3501.4,3501.3,3.0]
[1719858055543,1.31297957,3501.8,3501.3,3.0]
[1719858055746,0.05926155,3501.4,3501.3,3.0]
[1719858055946,0.53927753,3501.7,3501.3,3.0]
[1719858056161,0.05926155,3501.4,3501.3,3.0]
[1719858056319,0.53927753,3501.7,3501.3,3.0]
[1719858057139,0.05927057,3501.6,3501.3,3.0]
[1719858057266,0.42152334,3501.6,3501.3,3.0]
[1719858062220,0.42152334,3501.6,3500.3,2.2543]
[1719858062221,0.49291928,3501.6,3500.8,3.0]
[1719858062374,2.261,3501.5,3501.2,3.0]
[1719858062564,0.05925469,3501.4,3501.2,3.0]
[1719858062771,0.55,3501.3,3501.2,3.0]
[1719858062969,0.05925362,3501.3,3501.2,3.0]
[1719858063171,1.711,3501.5,3501.2,3.0]
[1719858063416,0.05925469,3501.4,3501.2,3.0]
[1719858066605,1.711,3501.9,3501.2,3.0]
[1719858066808,0.68064806,3501.8,3501.2,3.0]
[1719858069211,0.68064806,3501.8,3500.8,3.0]
[1719858069413,1.711,3501.5,3500.8,3.0]
[1719858069631,2.52805009,3501.4,3500.8,3.0]
[1719858069781,0.55,3501.3,3500.8,3.0]
[1719858069981,0.05924429,3501.2,3500.8,3.0]
[1719858070783,1.711,3501.5,3500.8,3.0]
[1719858070989,0.05924644,3501.4,3500.8,3.0]
[1719858071190,0.05924644,3501.4,3500.9,0.02771096]
[1719858071494,0.05924644,3501.4,3500.9,0.02771294]
[1719858071708,0.05924644,3501.4,3501.2,3.0]
[1719858074206,0.05924644,3501.4,3501.2,3.02769553]
[1719858074405,1.711,3501.8,3501.2,3.02769553]
[1719858074606,0.05730366,3501.7,3501.2,3.02769553]
[1719858076419,0.05730366,3501.7,3501.2,3.0]
[1719858077110,2.349,3501.6,3501.2,3.0]
[1719858077508,0.0573222,3501.5,3501.2,3.0]
[1719858078212,2.33143387,3501.8,3501.2,3.0]
[1719858078451,0.59281742,3501.7,3501.2,3.0]
[1719858078857,1.711,3501.6,3501.2,3.0]
[1719858079364,0.05731392,3501.5,3501.2,3.0]
[1719858079918,2.24650136,3501.7,3501.2,3.0]
[1719858080137,0.05732113,3501.4,3501.2,3.0]
[1719858080308,2.24650136,3501.7,3501.2,3.0]
[1719858080509,0.05732006,3501.3,3501.2,3.0]
[1719858080708,1.711,3501.7,3501.2,3.0]
[1719858080946,0.05732006,3501.3,3501.2,3.0]
[1719858081120,1.711,3501.7,3501.2,3.0]
[1719858081323,0.05732006,3501.3,3501.2,3.0]
[1719858081528,1.711,3501.7,3501.2,3.0]
[1719858081739,0.05731729,3501.3,3501.2,3.0]
[1719858082343,1.711,3501.7,3501.2,3.0]
[1719858082516,0.05731453,3501.3,3500.7,2.2543]
[1719858082720,1.78239636,3501.7,3500.9,3.0]
[1719858082928,0.05731208,3501.2,3500.9,3.0]
[1719858083243,0.05731101,3501.1,3500.7,2.2543]
[1719858083436,0.05731101,3501.1,3500.9,3.0]
[1719858083632,1.711,3501.3,3500.9,3.0]
[1719858083825,0.05730518,3501.2,3500.9,3.0]
[1719858086636,2.3991,3501.1,3500.4,3.0]
[1719858086826,1.711,3500.7,3500.4,3.0]
[1719858087024,1.711,3500.7,3499.9,3.0]
[1719858087025,0.12868058,3500.6,3499.9,3.0]
[1719858087224,1.711,3500.3,3499.9,3.0]
[1719858087439,0.05723085,3500.2,3499.9,3.0]
[1719858087957,2.3991,3500.5,3499.9,3.0]
[1719858088175,0.05722742,3500.1,3499.9,3.0]
[1719858088329,1.711,3500.8,3499.9,3.0]
[1719858088515,2.18022226,3500.8,3499.9,3.0]
[1719858088743,0.05715348,3500.7,3499.9,3.0]
[1719858090252,1.711,3500.3,3499.9,3.0]
[1719858090419,1.711,3500.3,3499.8,3.0]
[1719858090614,0.05706389,3500.2,3499.8,3.0]
[1719858090849,1.711,3500.3,3499.8,3.0]
[1719858091019,0.05706281,3500.1,3499.8,3.0]
[1719858091219,2.3583,3500.6,3499.8,3.3]
[1719858091457,2.3180671,3500.5,3499.8,3.0]
[1719858092716,0.07142368,3500.4,3499.8,3.0]
[1719858093119,1.711,3500.1,3499.4,3.0]
[1719858093319,2.3837,3500.0,3499.4,3.0]
[1719858093757,0.05703994,3499.9,3499.4,3.0]
[1719858093916,0.05703994,3499.9,3499.4,4.55443]
[1719858095445,0.05703994,3499.9,3499.4,3.0]
[1719858095953,0.05703994,3499.9,3499.2,3.0]
[1719858095954,1.711,3499.7,3499.2,3.0]
[1719858096157,1.711,3499.7,3497.2,2.85939]
[1719858096158,2.3837,3499.2,3498.4,3.0]
[1719858096346,2.3837,3499.2,3498.5,0.02783511]
[1719858096347,1.711,3498.8,3498.5,0.02783511]
[1719858096658,0.05697902,3498.7,3498.5,0.02783042]
[1719858096860,4.0947,3499.2,3498.5,0.02783042]
[1719858097153,0.05697794,3498.6,3498.5,0.02783042]
[1719858097355,4.0947,3499.2,3498.5,0.02783042]
[1719858097521,0.05697794,3498.6,3498.5,0.02783042]
[1719858097719,0.40947,3499.1,3498.5,0.02783042]
[1719858097923,0.05697618,3498.6,3498.4,3.0]
[1719858098151,1.711,3498.7,3498.4,3.0]
[1719858098370,0.05696921,3498.5,3498.4,3.0]
[1719858098553,1.711,3498.7,3498.4,3.0]
[1719858099155,0.05684636,3498.6,3498.4,3.0]
[1719858100761,0.52658254,3498.6,3498.4,3.0]
[1719858101753,0.05684636,3498.6,3498.4,3.0]
[1719858102152,0.05684636,3498.6,3498.0,3.0]
[1719858102357,0.12830193,3498.6,3498.0,3.0]
[1719858102745,1.711,3498.3,3498.0,3.0]
[1719858103144,0.05684131,3498.2,3498.0,3.0]
[1719858103366,0.05684131,3498.2,3497.6,3.0]
[1719858103564,1.711,3498.3,3498.0,3.0]
[1719858103766,0.05675416,3498.1,3498.0,3.0]
[1719858103951,1.711,3498.3,3498.0,3.0]
[1719858104149,0.05675416,3498.1,3498.0,3.0]
[1719858104344,1.711,3498.3,3498.0,3.0]
[1719858104550,0.05675416,3498.1,3498.0,3.0]
[1719858104749,1.711,3498.3,3498.0,3.0]
[1719858104945,0.05675567,3498.1,3498.0,3.0]
[1719858105157,1.711,3498.3,3498.0,3.0]
[1719858105341,0.05675252,3498.1,3498.0,3.0]
[1719858105545,1.711,3498.3,3498.0,3.0]
[1719858105742,0.0567514,3498.1,3498.0,3.0]
[1719858105968,2.1444757,3498.3,3498.0,3.0]
[1719858106145,0.05675064,3498.1,3498.0,3.0]
[1719858106346,1.711,3498.3,3498.0,3.0]
[1719858106546,0.05675064,3498.1,3498.0,3.0]
[1719858106746,1.78246613,3498.3,3498.0,3.0]
[1719858106957,0.05675064,3498.1,3498.0,3.0]
[1719858107177,1.711,3498.3,3498.0,3.0]
[1719858107381,0.05675027,3498.1,3498.0,3.0]
[1719858107549,4.06165965,3498.9,3498.0,3.0]
[1719858107878,0.05669654,3498.8,3498.0,3.0]
[1719858108075,0.0714596,3498.7,3498.0,3.0]
[1719858108282,0.07145962,3498.7,3498.0,3.0]
[1719858108465,0.05669402,3498.6,3498.0,3.0]
[1719858108865,0.07146144,3498.8,3498.0,3.0]
[1719858109065,0.05669294,3498.5,3498.0,3.0]
[1719858109270,3.9902,3498.9,3498.4,3.0]
[1719858109470,2.35065421,3499.4,3498.4,3.0]
[1719858109770,2.2792,3499.4,3498.5,0.02783547]
[1719858109984,3.9902,3499.4,3498.4,3.0]
[1719858110173,0.07144573,3499.3,3498.4,3.0]
[1719858110948,1.711,3499.0,3498.4,3.0]
[1719858111148,1.711,3499.0,3498.5,0.02782184]
[1719858112451,1.711,3499.2,3498.5,0.02782184]
[1719858112653,2.4516,3500.1,3499.0,3.0]
[1719858112857,4.1626,3500.1,3499.5,3.0]
[1719858113051,1.711,3500.1,3499.5,3.0]
[1719858113350,1.711,3500.1,3499.6,0.02777929]
[1719858113550,1.78243083,3500.5,3499.6,0.02777929]
[1719858114581,1.711,3500.1,3499.6,0.02777929]
[1719858116093,1.711,3500.2,3499.6,0.02777929]
[1719858117224,0.55,3500.4,3499.1,3.0]
[1719858117225,1.711,3499.8,3499.1,3.0]
[1719858117390,1.711,3499.8,3499.5,3.0]
[1719858117909,0.05682247,3499.7,3499.1,3.0]
[1719858118871,1.711,3499.4,3498.8,6.0]
[1719858119069,0.1711,3499.3,3499.1,3.0]
[1719858119272,1.711,3499.4,3499.1,3.0]
[1719858119705,0.05677631,3499.3,3499.1,3.0]
[1719858120278,0.05677631,3499.3,3498.7,3.0]
[1719858120482,0.05677631,3499.3,3498.6,3.0]
[1719858120717,0.17677763,3499.2,3499.0,3.0]
[1719858121010,0.17677763,3499.2,3498.5,3.0]
[1719858121214,1.711,3499.0,3498.5,3.0]
[1719858121585,1.711,3499.0,3498.6,0.02782037]
[1719858121786,0.17677763,3499.2,3498.6,0.02782037]
[1719858121990,1.711,3499.4,3498.6,0.02782037]
[1719858122185,0.05670779,3499.1,3498.6,0.02782037]
[1719858122403,1.711,3499.4,3498.6,0.02782037]
[1719858122612,2.471,3499.8,3498.9,3.0]
[1719858122812,0.05670994,3499.3,3499.0,0.02779746]
[1719858123012,0.2471,3499.7,3499.0,0.02779746]
[1719858123209,0.05668399,3499.2,3499.0,0.02779746]
[1719858123398,4.182,3499.8,3499.0,0.02779746]
[1719858123599,0.05668292,3499.1,3499.0,0.02779746]
[1719858123910,4.182,3499.8,3499.0,0.02779746]
[1719858124092,4.182,3499.8,3498.9,3.0]
[1719858124275,1.711,3499.4,3498.9,3.0]
[1719858124481,0.05668506,3499.3,3498.9,3.0]
[1719858126180,0.05668506,3499.3,3499.0,0.02781181]
[1719858126693,0.05668399,3499.2,3499.0,0.02781181]
[1719858127076,4.182,3499.8,3499.0,0.02781181]
[1719858127280,0.05668935,3499.7,3499.0,0.02781181]
[1719858127989,0.05668935,3499.7,3499.3,3.0]
[1719858128202,0.05668935,3499.7,3499.4,0.02778422]
[1719858128448,4.78243296,3500.2,3499.4,0.02778422]
[1719858128639,0.05671732,3499.6,3499.4,0.02778422]
[1719858128783,0.55,3500.1,3499.4,0.02778422]
[1719858128990,0.05671624,3499.5,3499.4,0.02778422]
[1719858129217,0.8314258,3500.0,3499.4,0.02778422]
[1719858129584,0.05676476,3499.9,3499.4,0.02778422]
[1719858130184,0.05676476,3499.9,3499.3,3.0]
[1719858130884,2.3861,3499.6,3498.9,3.0]
[1719858131108,0.46651329,3499.5,3498.9,3.0]
[1719858131387,0.46651329,3499.5,3498.6,7.29]
[1719858131583,0.05680329,3499.5,3499.0,3.0]
[1719858132114,0.05680329,3499.5,3498.7,3.0]
[1719858134009,0.05680329,3499.5,3498.8,0.02780634]
[1719858134390,1.711,3499.7,3498.8,0.02780634]
[1719858134587,0.05674419,3499.4,3498.8,0.02780634]
[1719858134799,3.0,3500.2,3499.2,3.0]
[1719858135000,0.05676662,3499.3,3499.2,3.0]
[1719858135228,1.711,3500.2,3499.2,3.0]
[1719858135425,4.711,3500.2,3499.2,3.0]
[1719858135728,0.0567987,3500.1,3499.2,3.0]
[1719858136924,0.0567987,3500.1,3499.6,3.0]
[1719858139997,0.0567987,3500.1,3499.7,0.02777523]
[1719858140503,0.05688604,3500.0,3499.7,0.02777523]
[1719858140704,0.05688604,3500.0,3499.8,2.2543]
[1719858140904,1.711,3500.8,3500.0,3.0]
[1719858141317,0.05691841,3500.7,3500.0,3.0]
[1719858143732,0.05691841,3500.7,3500.1,0.02775275]
[1719858144028,0.05691841,3500.7,3500.1,0.55595803]
[1719858145211,0.05691841,3500.7,3500.1,0.02775275]
[1719858146243,1.711,3500.4,3500.0,3.0]
[1719858146527,0.0570274,3500.3,3500.0,3.0]
[1719858147253,0.0570274,3500.3,3499.4,2.2543]
[1719858147254,0.12845088,3500.3,3499.6,3.0]
[1719858147532,0.128455,3500.3,3499.6,3.0]
[1719858147712,0.0570274,3500.3,3499.6,3.0]
[1719858149715,0.05700286,3500.2,3499.6,3.0]
[1719858150115,4.50526276,3500.4,3499.6,3.0]
[1719858150116,2.12706276,3500.4,3499.6,5.2543]
[1719858150317,0.05697277,3500.1,3499.7,0.02777167]
[1719858150533,1.711,3500.4,3499.7,0.02777167]
[1719858150746,0.0569717,3500.0,3499.6,5.2543]
[1719858150912,1.711,3500.4,3499.6,5.2543]
[1719858151130,0.0569803,3499.9,3499.6,3.0]
[1719858151430,1.711,3500.4,3499.6,3.0]
[1719858151627,0.05697922,3499.8,3499.6,3.0]
[1719858151964,0.05697815,3499.7,3499.6,3.0]
[1719858152450,1.711,3500.4,3499.6,3.0]
[1719858152834,0.05698459,3500.3,3499.6,3.0]
[1719858153026,0.05698459,3500.3,3499.7,0.02775915]
[1719858155939,0.05698459,3500.3,3499.6,3.0]
[1719858156730,0.05698459,3500.3,3499.7,0.02775937]
[1719858156935,0.05698459,3500.3,3499.6,3.0]
[1719858157279,0.05698459,3500.3,3499.6,3.52543]
[1719858158162,1.711,3500.0,3499.6,3.0]
[1719858158768,0.05700241,3499.9,3499.6,3.0]
[1719858161357,0.05700241,3499.9,3499.0,3.0]
[1719858161358,2.2963,3499.8,3499.0,3.0]
[1719858161663,2.2963,3499.8,3497.9,7.29]
[1719858161664,4.0073,3499.1,3498.3,3.0]
[1719858161966,0.12842162,3499.0,3498.3,3.0]
[1719858163262,0.12842164,3499.0,3498.3,3.0]
[1719858164063,1.711,3498.7,3498.3,3.0]
[1719858164266,0.05681411,3498.6,3498.3,3.0]
[1719858165859,0.05681411,3498.6,3497.4,17.7512]
[1719858165860,0.3050542,3498.6,3497.9,3.0]
[1719858166048,0.12827279,3498.6,3497.9,3.0]
[1719858166549,0.05681411,3498.6,3498.0,0.02785989]
[1719858167854,0.05681411,3498.6,3497.9,3.0]
[1719858168375,0.05681411,3498.6,3498.0,0.0278506]
[1719858171383,0.05681411,3498.6,3498.0,0.33063566]
[1719858172167,0.05681411,3498.6,3498.3,3.0]
[1719858172358,1.711,3499.1,3498.4,0.02783221]
[1719858172572,0.05473364,3498.5,3498.4,0.02783221]
[1719858172766,1.711,3499.1,3498.4,0.02783221]
[1719858172958,0.05473305,3498.5,3498.4,0.02783221]
[1719858173158,1.711,3499.1,3498.4,0.02783221]
[1719858173353,0.05473246,3498.5,3498.4,0.02783221]
[1719858173559,1.711,3499.1,3498.4,0.02783221]
[1719858173765,0.05473599,3498.5,3498.4,0.02783221]
[1719858173981,1.711,3499.1,3498.4,0.02783221]
[1719858174151,0.0547354,3498.5,3498.4,0.02783221]
[1719858174349,2.18924529,3499.1,3498.4,0.02783221]
[1719858174554,0.05473364,3498.5,3498.4,0.02783221]
[1719858175060,1.711,3499.1,3498.4,0.02783221]
[1719858175456,1.711,3498.7,3498.3,3.0]
[1719858175657,0.05477241,3498.6,3498.3,3.0]
[1719858177496,0.05477241,3498.6,3498.4,0.02784074]
[1719858177661,2.2554,3498.9,3498.4,0.02784074]
[1719858177861,0.05475581,3498.8,3498.4,0.02784074]
[1719858178062,0.05475581,3498.8,3498.3,3.0]
[1719858178594,0.05475581,3498.8,3498.4,0.02783056]
[1719858178790,0.05475581,3498.8,3498.4,0.33061362]
[1719858179092,1.711,3499.1,3498.4,0.33061362]
[1719858179257,0.05474435,3499.0,3498.4,0.33061362]
[1719858179704,0.05474435,3499.0,3498.7,3.0]
[1719858179870,4.0435,3499.5,3498.7,3.0]
[1719858180196,0.05477138,3499.4,3498.7,3.0]
[1719858181254,0.05477138,3499.4,3498.8,0.02781635]
[1719858182167,0.05477138,3499.4,3498.7,3.0]
[1719858182494,0.05477138,3499.4,3498.8,0.02780633]
[1719858183388,0.12621285,3499.4,3498.7,3.0]
[1719858183902,1.711,3499.1,3498.7,3.0]
[1719858184062,0.054821,3499.0,3498.7,3.0]
[1719858184460,2.4728,3498.9,3498.7,3.0]
[1719858184804,0.05481747,3498.8,3498.3,3.0]
[1719858185195,1.711,3498.7,3498.3,3.0]
[1719858185396,0.49531847,3498.6,3497.9,3.0]
[1719858185625,1.711,3498.3,3497.9,3.0]
[1719858186096,1.711,3498.3,3497.2,7.29]
[1719858186097,0.12624948,3498.2,3497.4,3.0]
[1719858186299,0.07146197,3498.2,3497.4,3.0]
[1719858187125,0.05475004,3498.1,3497.4,3.0]
[1719858187405,0.07146197,3498.2,3497.8,3.0]
[1719858187912,0.05475122,3498.1,3497.8,3.0]
[1719858188526,0.05475122,3498.1,3497.9,0.02787328]
[1719858188696,0.05475122,3498.1,3497.9,0.02786052]
[1719858188897,1.711,3498.3,3497.9,0.30278605]
[1719858189099,1.711,3498.3,3497.8,3.0]
[1719858189281,0.05421563,3498.2,3497.8,3.0]
[1719858189483,1.711,3498.3,3497.8,3.0]
[1719858189695,0.05421382,3498.2,3497.8,3.0]
[1719858190011,1.711,3498.3,3497.8,3.0]
[1719858190396,0.05421386,3498.2,3497.8,3.0]
[1719858190811,1.711,3498.3,3497.8,3.0]
[1719858191182,0.12568259,3498.2,3497.8,3.0]
[1719858193398,1.711,3497.9,3497.4,3.0]
[1719858193595,0.07147599,3497.8,3497.4,3.0]
[1719858193905,0.12569365,3497.8,3497.4,3.0]
[1719858194109,0.05421766,3497.8,3497.4,3.0]
[1719858197113,0.05421766,3497.8,3497.5,0.02788151]
[1719858197317,0.05421766,3497.8,3497.5,0.33066966]
[1719858198382,0.05421766,3497.8,3497.5,0.02788151]
[1719858203024,0.05421766,3497.8,3497.4,3.0]
[1719858204509,0.12568959,3497.8,3497.4,3.0]
[1719858204714,0.12568959,3497.8,3496.7,7.29]
[1719858204715,1.711,3497.5,3496.9,3.0]
[1719858205088,4.1791,3497.1,3496.6,3.0]
[1719858205291,0.05367079,3497.0,3496.6,3.0]
[1719858210698,2.4077,3497.6,3496.7,0.02792333]
[1719858210899,1.711,3497.4,3496.6,3.0]
[1719858211093,0.05350523,3497.3,3496.6,3.0]
[1719858211406,0.05350523,3497.3,3496.7,0.02789964]
[1719858212430,0.05350523,3497.3,3496.6,3.0]
[1719858213700,0.05350523,3497.3,3496.7,0.02791766]
[1719858213900,0.05350523,3497.3,3496.8,0.30279177]
[1719858215132,0.05350523,3497.3,3496.9,0.02790259]
[1719858217035,0.05350523,3497.3,3496.6,3.0]
[1719858217530,0.05350523,3497.3,3496.7,0.02790282]
[1719858222403,0.05350523,3497.3,3496.6,3.0]
[1719858222670,0.05350523,3497.3,3496.7,0.3]
[1719858223634,0.05350523,3497.3,3496.8,0.02790332]
[1719858225336,0.05350523,3497.3,3496.6,3.0]
[1719858226233,2.3508,3497.2,3496.6,3.0]
[1719858226453,1.711,3497.0,3496.6,3.0]
[1719858226855,0.0535227,3496.9,3496.6,3.0]
[1719858227057,0.0535227,3496.9,3496.1,7.29]
[1719858227221,0.0535227,3496.9,3496.5,3.0]
[1719858227425,4.0049,3496.6,3496.5,3.0]
[1719858227720,4.05841947,3496.6,3496.5,3.0]
[1719858229718,4.05841947,3496.6,3496.1,3.0]
[1719858237770,2.34741947,3496.6,3496.1,3.0]
[1719858237967,0.714,3496.2,3496.1,3.0]
[1719858238174,0.76735022,3496.2,3496.1,3.0]
[1719858242974,0.76735022,3496.2,3495.9,3.0]
[1719858243291,3.1289,3496.0,3495.9,2.6015625]
[1719858243493,2.86109,3495.2,3493.2,1.145551]
[1719858243785,2.486,3494.9,3494.1,3.0]
[1719858243982,0.714,3494.2,3494.1,3.0]
[1719858244184,0.76538277,3494.2,3494.1,3.0]
[1719858244360,0.05138277,3494.2,3494.1,3.3]
[1719858244562,0.028,3495.0,3494.1,3.3]
[1719858244872,0.05138912,3494.9,3494.5,3.0]
[1719858245074,0.714,3494.7,3494.6,0.02802051]
[1719858245274,0.05138912,3494.9,3494.6,0.02802051]
[1719858245451,0.714,3494.8,3494.6,0.33081239]
[1719858245654,0.76523751,3494.8,3494.6,0.33081239]
[1719858245873,0.05123751,3494.8,3494.6,0.33081239]
[1719858246272,0.028,3495.0,3494.6,0.33081239]
[1719858246484,0.05123644,3494.7,3494.6,0.33081239]
[1719858246685,0.028,3495.0,3494.6,0.33081239]
[1719858246872,0.028,3495.0,3494.6,0.02801034]
[1719858247078,0.05123859,3494.9,3494.6,0.02801034]
[1719858248003,0.028,3495.0,3494.5,3.0]
[1719858248211,0.028,3495.0,3494.9,3.0]
[1719858248718,0.07917176,3495.0,3494.9,3.0]
[1719858249298,0.07917176,3495.0,3494.5,3.0]
[1719858249484,0.07917176,3495.0,3494.6,0.6]
[1719858249694,0.028,3495.0,3494.6,3.6]
[1719858250014,0.05117069,3494.9,3494.6,3.6]
[1719858250497,0.028,3495.0,3494.6,3.6]
[1719858250868,0.05117069,3494.9,3494.6,3.0]
[1719858251075,0.05117069,3494.9,3494.3,3.0]
[1719858251284,0.028,3495.0,3494.3,3.0]
[1719858251690,0.05118316,3494.9,3494.3,3.0]
[1719858252074,0.028,3495.0,3494.3,3.0]
[1719858252495,0.05118316,3494.9,3494.3,3.0]
[1719858253018,0.05118316,3494.9,3494.4,0.02803077]
[1719858253320,0.05118316,3494.9,3493.4,3.0]
[1719858253321,1.714,3494.5,3493.4,3.0]
[1719858254020,0.05116671,3494.4,3493.5,0.02805732]
[1719858254187,0.05116671,3494.4,3493.5,0.33086305]
[1719858255406,0.05116671,3494.4,3493.5,3.33086305]
[1719858255612,0.05116671,3494.4,3493.6,3.0]
[1719858255815,0.05116671,3494.4,3493.7,0.0280574]
[1719858257186,0.05116671,3494.4,3493.8,3.0]
[1719858257389,0.05116671,3494.4,3493.9,0.33083991]
[1719858257590,0.028,3495.0,3493.9,0.33083991]
[1719858257591,0.028,3495.0,3494.2,3.0]
[1719858257824,0.05080735,3494.9,3494.3,0.02802304]
[1719858259300,2.4602,3494.8,3493.9,3.0]
[1719858259502,2.71410074,3494.8,3494.0,0.02804555]
[1719858259727,0.05084816,3494.7,3494.0,0.02804555]
[1719858267553,0.05084816,3494.7,3494.6,3.0]
[1719858267930,0.028,3495.0,3494.6,3.0]
[1719858268256,0.028,3495.0,3494.7,0.32798771]
[1719858268421,0.028,3495.0,3494.7,0.02798771]
[1719858269047,0.028,3495.0,3494.6,3.0]
[1719858269248,0.028,3495.0,3494.7,3.0]
[1719858269650,0.0491427,3494.9,3494.7,3.0]
[1719858269818,0.0491427,3494.9,3494.6,3.0]
[1719858271335,0.29020697,3494.9,3494.3,3.0]
[1719858271539,0.29020697,3494.9,3494.2,3.02803489]
[1719858271737,0.29020697,3494.9,3494.2,3.0]
[1719858271940,0.29020697,3494.9,3493.9,3.0]
[1719858272249,0.44372443,3494.8,3493.9,3.0]
[1719858272562,0.49286466,3494.8,3493.9,3.0]
[1719858273275,0.07153736,3494.7,3493.9,3.0]
[1719858273640,0.04910067,3494.6,3493.9,3.0]
[1719858273971,2.2926,3494.5,3493.9,3.02804876]
[1719858274275,0.24132438,3494.4,3493.9,3.0]
[1719858274571,0.29040627,3494.4,3493.9,3.0]
[1719858276366,0.36195205,3494.4,3493.9,3.0]
[1719858276562,0.29040627,3494.4,3493.9,3.0]
[1719858277376,0.29040627,3494.4,3493.6,7.29]
[1719858277576,0.29040627,3494.4,3493.7,0.02805528]
[1719858277781,0.29040627,3494.4,3493.6,7.29]
[1719858278084,0.07154582,3494.3,3493.6,7.29]
[1719858278279,0.55745828,3494.3,3493.5,3.0]
[1719858278473,1.78555258,3494.2,3493.5,3.0]
[1719858278677,2.4997,3494.1,3493.5,3.0]
[1719858278980,0.07155401,3494.0,3493.5,3.0]
[1719858279370,0.04904048,3493.9,3493.5,3.0]
[1719858284015,2.398,3493.8,3493.1,1.1286894]
[1719858284216,1.714,3493.2,3491.4,0.2864031]
[1719858284512,0.04896327,3493.1,3491.9,3.0]
[1719858284677,0.04896327,3493.1,3492.3,3.0]
[1719858284877,2.398,3493.5,3492.4,0.02809763]
[1719858285094,2.398,3493.5,3492.5,0.30280976]
[1719858285309,0.04897358,3493.4,3492.6,0.02809747]
[1719858288821,0.12053713,3493.4,3492.5,0.30280976]
[1719858289396,1.714,3493.0,3491.9,2.3788]
[1719858289716,0.04865274,3492.9,3491.8,3.0]
[1719858290017,0.04865274,3492.9,3491.9,3.0]
[1719858290591,0.12022867,3492.9,3491.9,3.0]
[1719858290910,0.12022867,3492.9,3492.0,0.6]
[1719858291313,0.12022867,3492.9,3491.6,3.0]
[1719858291518,0.04865274,3492.9,3491.5,5.3065]
[1719858294020,0.12018817,3492.9,3491.5,5.3065]
[1719858294236,0.12018817,3492.9,3491.6,0.83065]
[1719858294542,0.12018817,3492.9,3491.6,3.83065]
[1719858295588,0.12018817,3492.9,3491.6,3.80265]
[1719858296118,0.04861217,3492.9,3491.6,3.80265]
[1719858296506,0.12018828,3492.9,3491.6,3.80265]
[1719858296704,0.12018828,3492.9,3491.7,0.93999982]
[1719858297933,0.04861217,3492.9,3491.8,0.02813011]
[1719858298319,1.78557698,3493.4,3491.8,0.02813011]
[1719858299023,0.04861404,3493.3,3491.8,0.02813011]
[1719858299222,0.04861404,3493.3,3491.9,0.56861299]
[1719858299451,0.04861404,3493.3,3492.0,0.02811795]
[1719858301244,0.12018419,3493.3,3491.9,3.56861299]
[1719858301556,0.12018419,3493.3,3490.5,2.4433]
[1719858301557,1.714,3492.1,3490.5,2.4433]
[1719858301765,2.3559,3492.0,3490.9,7.29]
[1719858301935,2.40443626,3492.0,3490.9,7.29]
[1719858302255,2.40443626,3492.0,3491.0,1.029]
[1719858302921,2.3559,3492.0,3491.0,1.029]
[1719858303117,2.3559,3492.0,3491.0,4.029]
[1719858304869,0.04846052,3491.9,3491.0,4.029]
[1719858305039,2.3559,3492.0,3491.0,4.029]
[1719858305258,0.04846052,3491.9,3491.1,1.31074569]
[1719858305544,2.3559,3492.0,3491.1,1.31074569]
[1719858305767,0.04845885,3491.8,3491.1,1.31074569]
[1719858305973,1.714,3491.7,3491.0,3.0]
[1719858306185,1.714,3491.7,3490.6,0.28937985]
[1719858306391,2.2557,3491.5,3490.5,3.0]
[1719858306535,2.2557,3491.5,3490.6,0.61204875]
[1719858306739,0.04845615,3491.4,3490.6,0.61204875]
[1719858309758,0.04845615,3491.4,3490.5,3.0]
[1719858309759,0.02045615,3491.4,3490.5,3.0]
[1719858309990,0.0474621,3491.4,3490.5,3.0]
[1719858310962,1.714,3491.3,3490.4,0.1204875]
[1719858311294,0.40171621,3491.2,3490.4,0.1204875]
[1719858311483,0.44904444,3491.2,3490.4,0.1204875]
[1719858312395,2.2863,3491.1,3490.4,0.1204875]
[1719858312764,0.04729353,3491.0,3490.4,0.1204875]
[1719858313971,0.04729353,3491.0,3490.5,0.02822209]
[1719858314175,2.447,3491.5,3490.5,0.02822209]
[1719858314176,0.07160527,3491.4,3490.5,0.31487096]
[1719858314412,0.07160527,3491.4,3490.4,0.1204875]
[1719858314585,0.04681218,3490.9,3490.4,0.1204875]
[1719858314770,0.07160527,3491.4,3490.4,0.1204875]
[1719858315262,0.0467832,3491.3,3490.4,0.1204875]
[1719858316968,0.07161293,3491.2,3490.4,0.1204875]
[1719858317306,2.447,3491.0,3490.4,0.1204875]
[1719858317469,0.07161975,3490.9,3490.4,0.1204875]